bitfinex/quotes_SOLUSD_20250814
["timestamp","ask_amount","ask_price","bid_price","bid_amount"]
[1755206271540,10.41656103,191.26,191.22,5.22957849]
[1755206271716,10.41656103,191.23,191.21,0.03]
[1755206272028,49.15656103,191.22,191.21,0.03]
[1755206272433,49.80656103,191.22,191.21,0.03]
[1755206273026,79.80656103,191.22,191.21,0.03]
[1755206273213,85.03613952,191.22,191.21,0.03]
[1755206273411,88.44993655,191.22,191.21,0.03]
[1755206273924,83.22035806,191.22,191.21,0.03]
[1755206274235,68.74,191.22,191.21,0.03]
[1755206274814,38.74,191.22,191.21,0.03]
[1755206275415,49.15656103,191.22,191.21,0.03]
[1755206275639,49.80656103,191.22,191.21,0.03]
[1755206276011,41.10621557,191.18,191.01,0.67]
[1755206276212,89.80656103,191.22,191.01,5.90521076]
[1755206276213,10.41656103,191.05,191.01,5.90521076]
[1755206276413,10.41656103,191.04,191.01,5.23521076]
[1755206276709,10.41656103,191.04,190.98,0.67]
[1755206276926,38.86,191.06,191.01,10.41656103]
[1755206277138,38.86,191.06,191.02,0.67]
[1755206277348,38.86,191.06,191.03,5.23477987]
[1755206278423,49.27656103,191.06,191.03,5.23477987]
[1755206279028,38.86,191.06,191.03,5.23477987]
[1755206279620,49.27656103,191.06,191.03,5.23477987]
[1755206279826,10.41656103,191.04,191.01,5.23532799]
[1755206280220,5.29244386,191.07,191.01,5.23532799]
[1755206280427,49.23656103,191.07,191.02,0.67]
[1755206280726,11.11656103,191.12,191.06,10.41656103]
[1755206280936,38.82,191.11,191.06,10.41656103]
[1755206281133,38.82,191.11,191.06,0.66]
[1755206281438,38.82,191.11,191.07,5.23368399]
[1755206281619,44.15103421,191.11,191.07,5.23368399]
[1755206282442,44.15103421,191.11,191.01,5.23532799]
[1755206282443,10.41656103,191.08,191.01,5.23532799]
[1755206282638,10.41656103,191.02,190.94,0.66]
[1755206282854,10.41656103,190.98,190.94,10.416561]
[1755206283037,10.41656103,190.96,190.94,10.416561]
[1755206283243,10.41656103,190.97,190.94,10.416561]
[1755206283437,10.41656103,190.97,190.95,5.23697302]
[1755206283762,38.86,190.99,190.95,5.23697302]
[1755206284546,49.27656103,190.99,190.95,5.23697302]
[1755206284845,55.11742044,190.99,190.95,5.23697302]
[1755206285528,55.11742044,190.99,190.93,18.33132561]
[1755206285735,55.11742044,190.99,190.93,18.99132561]
[1755206286141,16.25742044,190.98,190.93,18.99132561]
[1755206286659,16.25742044,190.95,190.93,5.2375216]
[1755206286844,16.25742044,190.94,190.89,5.2386191]
[1755206287044,16.25742044,190.95,190.89,5.8986191]
[1755206287243,38.82,190.96,190.89,18.99516685]
[1755206287472,55.07742044,190.96,190.89,35.25258729]
[1755206287634,55.07742044,190.96,190.89,18.99516685]
[1755206287635,16.25742044,190.95,190.89,18.99516685]
[1755206287829,16.25742044,190.95,190.89,35.25258729]
[1755206288035,38.82,190.96,190.9,16.25742044]
[1755206288868,38.82,190.96,190.93,16.25742044]
[1755206289074,55.03742044,191.0,190.94,0.66]
[1755206289449,16.25742044,190.97,190.95,5.23697302]
[1755206289755,16.25742044,190.96,190.91,18.36324602]
[1755206290059,0.7,190.99,190.91,18.36324602]
[1755206290241,16.25742044,190.97,190.91,18.36324602]
[1755206290632,16.25742044,190.96,190.93,0.03]
[1755206290862,16.25742044,190.98,190.93,0.03]
[1755206291269,16.95742044,190.98,190.93,0.03]
[1755206291635,16.95742044,190.97,190.93,0.03]
[1755206292148,16.25742044,190.95,190.93,0.03]
[1755206292546,16.25742044,190.94,190.93,0.03]
[1755206292748,16.95742044,190.95,190.93,0.03]
[1755206293345,0.7,190.95,190.93,0.03]
[1755206293567,16.95742044,190.95,190.93,0.03]
[1755206293872,0.7,190.95,190.93,0.03]
[1755206295565,38.76,190.99,190.93,16.94742044]
[1755206296040,38.76,191.01,190.96,16.25742044]
[1755206296248,38.76,191.01,190.96,16.91742044]
[1755206296450,39.46,191.01,190.95,16.25742044]
[1755206296674,55.71742044,191.01,190.94,16.25742044]
[1755206297199,55.71742044,191.01,190.95,5.23697302]
[1755206297998,0.7,191.0,190.95,5.23697302]
[1755206298198,16.25742044,190.96,190.93,0.03]
[1755206298495,16.25742044,190.94,190.93,0.03]
[1755206299068,16.95742044,190.94,190.93,0.03]
[1755206299485,16.25742044,190.94,190.93,0.03]
[1755206300102,38.8,190.95,190.93,0.03]
[1755206300314,55.05742044,190.95,190.93,0.03]
[1755206300475,38.8,190.95,190.93,0.03]
[1755206300887,26.0,191.02,190.93,0.03]
[1755206300888,16.25742044,191.03,190.94,16.91742044]
[1755206301093,38.88,191.02,190.97,5.23642456]
[1755206301417,16.25742044,190.98,190.93,0.03]
[1755206301719,0.37,191.01,190.93,0.03]
[1755206301720,55.13742044,190.99,190.93,5.26727069]
[1755206301924,55.50742044,190.99,190.93,5.26727069]
[1755206302141,16.25742044,190.97,190.93,5.26727069]
[1755206302504,0.37,190.97,190.93,5.26727069]
[1755206303001,16.62742044,190.97,190.93,0.03]
[1755206303219,38.88,190.96,190.93,0.03]
[1755206303794,0.37,191.04,190.95,16.25742044]
[1755206303998,16.25742044,191.02,190.94,0.66]
[1755206304199,55.15742044,191.03,190.96,16.25742044]
[1755206304405,16.62742044,191.02,190.95,16.25742044]
[1755206304708,16.25742044,191.02,190.95,16.25742044]
[1755206305098,55.52742044,191.03,190.96,16.25742044]
[1755206305410,38.88,191.02,190.96,16.25742044]
[1755206306022,55.13742044,191.02,190.95,18.98940559]
[1755206306204,38.88,191.02,190.96,16.25742044]
[1755206306722,38.88,191.02,190.96,10.47021447]
[1755206307311,38.88,191.02,190.97,18.32748598]
[1755206307513,50.05021447,191.02,190.97,5.23642456]
[1755206307823,0.7,191.01,190.97,5.23642456]
[1755206308136,41.10621557,191.1,190.99,10.47021447]
[1755206308326,24.43421879,191.09,190.97,5.23642456]
[1755206308534,5.33103421,191.11,191.04,10.47021447]
[1755206308732,7.14934171,191.15,191.1,10.47021447]
[1755206308905,38.94,191.16,191.13,10.47021447]
[1755206309216,10.47021447,191.14,191.08,5.23341009]
[1755206309419,0.7,191.15,191.09,10.47021447]
[1755206309728,49.41021447,191.16,191.12,10.47021447]
[1755206309729,39.04,191.16,191.12,10.47021447]
[1755206309905,44.31950799,191.16,191.12,10.47021447]
[1755206310104,44.31950799,191.16,191.1,10.47021447]
[1755206310328,44.31950799,191.16,191.11,10.47021447]
[1755206310499,44.31950799,191.16,191.08,34.03155731]
[1755206310500,10.47021447,191.13,191.08,15.714622]
[1755206310711,10.47021447,191.14,191.07,15.70385575]
[1755206311025,10.47021447,191.14,191.08,0.67]
[1755206311224,10.47021447,191.14,191.08,5.90338205]
[1755206311430,0.71,191.15,191.08,16.37359652]
[1755206311613,11.18021447,191.15,191.08,16.37359652]
[1755206311805,44.31950799,191.16,191.08,16.37359652]
[1755206312151,44.31950799,191.16,191.1,10.47021447]
[1755206312636,10.47021447,191.15,191.09,0.67]
[1755206312929,44.31950799,191.16,191.11,10.47021447]
[1755206313127,44.31950799,191.16,191.08,18.31690727]
[1755206313128,44.31950799,191.16,191.12,10.47021447]
[1755206313424,44.31950799,191.16,191.13,5.23204101]
[1755206314016,0.06,191.19,191.13,16.37225548]
[1755206314228,39.0,191.18,191.13,16.37225548]
[1755206315107,39.0,191.18,191.14,11.14021447]
[1755206315308,10.47021447,191.16,191.12,5.23227049]
[1755206315735,11.18021447,191.16,191.12,5.23227049]
[1755206316147,10.47021447,191.15,191.12,5.23227049]
[1755206316446,11.18021447,191.16,191.12,5.23227049]
[1755206316654,10.47021447,191.15,191.09,5.23313621]
[1755206316946,10.47021447,191.14,191.09,5.23313621]
[1755206317150,10.47021447,191.12,191.09,5.23313621]
[1755206317527,0.06,191.19,191.11,10.47021447]
[1755206317731,0.06,191.19,191.18,10.47021447]
[1755206318251,0.06,191.19,191.18,11.14021447]
[1755206318845,0.06,191.19,191.18,22.11319822]
[1755206319352,0.06,191.19,191.16,21.44351783]
[1755206319525,0.06,191.19,191.16,5.23099227]
[1755206319850,0.06,191.19,191.18,16.21252556]
[1755206320341,0.06,191.19,191.18,16.88252556]
[1755206320848,0.06,191.19,191.18,22.11319822]
[1755206321019,0.06,191.23,191.18,22.11319822]
[1755206321219,0.06,191.23,191.2,16.21252556]
[1755206321722,0.06,191.23,191.2,16.88252556]
[1755206321927,1e-08,191.21,191.2,16.88252556]
[1755206322332,1e-08,191.21,191.2,0.67]
[1755206322853,1e-08,191.21,191.2,5.90012552]
[1755206323141,1e-08,191.21,191.2,22.11265108]
[1755206323637,1e-08,191.21,191.2,37.21886665]
[1755206323823,1e-08,191.21,191.2,39.31250465]
[1755206325530,1e-08,191.21,191.2,78.29250465]
[1755206328243,1e-08,191.21,191.2,7.32376352]
[1755206328449,1e-08,191.21,191.2,5.23012552]
[1755206328932,1e-08,191.21,191.2,21.44265108]
[1755206329135,1e-08,191.21,191.2,22.11265108]
[1755206329731,1e-08,191.23,191.21,15.10621557]
[1755206329952,1e-08,191.23,191.22,55.09252556]
[1755206330152,1e-08,191.23,191.22,55.76252556]
[1755206330455,0.06,191.25,191.22,55.76252556]
[1755206330456,1e-08,191.25,191.24,41.10621557]
[1755206330638,1e-08,191.3,191.25,41.10621557]
[1755206330840,3.3954524,191.4,191.3,15.10621557]
[1755206331040,3.3954524,191.4,191.33,16.21252556]
[1755206331041,0.81,191.39,191.33,16.21252556]
[1755206331241,16.92252556,191.37,191.31,55.15252556]
[1755206331459,0.71,191.37,191.31,55.15252556]
[1755206331755,0.77,191.34,191.3,2.092871]
[1755206332054,0.06,191.34,191.33,16.21252556]
[1755206333050,0.06,191.34,191.31,0.67]
[1755206333236,0.06,191.34,191.33,16.21252556]
[1755206334039,0.06,191.34,191.32,16.21252556]
[1755206334376,0.71,191.33,191.28,39.02]
[1755206334697,0.06,191.34,191.28,39.69]
[1755206335029,0.06,191.34,191.28,55.23252556]
[1755206335755,0.06,191.34,191.29,16.21252556]
[1755206336653,0.77,191.34,191.29,16.21252556]
[1755206337648,0.77,191.34,191.3,5.22739153]
[1755206337857,0.77,191.34,191.29,16.21252556]
[1755206337858,0.77,191.34,191.29,5.22759196]
[1755206338161,0.06,191.34,191.28,16.21252556]
[1755206338458,0.06,191.34,191.28,16.88252556]
[1755206338666,16.27252556,191.34,191.28,0.67]
[1755206339040,0.06,191.34,191.28,16.88252556]
[1755206339862,0.06,191.34,191.29,5.2276648]
[1755206340250,5.30584704,191.34,191.29,21.44019036]
[1755206340457,0.06,191.34,191.33,16.21252556]
[1755206340658,1e-08,191.34,191.33,26.23126557]
[1755206340858,1e-08,191.35,191.33,26.23126557]
[1755206341037,1e-08,191.35,191.34,50.56767987]
[1755206341971,1e-08,191.35,191.34,55.27134873]
[1755206342848,1e-08,191.36,191.34,70.90019417]
[1755206343052,1e-08,191.36,191.35,11.12505]
[1755206344165,1e-08,191.36,191.35,16.3510756]
[1755206347260,0.1,191.39,191.38,26.0]
[1755206347866,0.1,191.39,191.38,36.42505]
[1755206349182,0.1,191.39,191.38,26.0]
[1755206349354,0.1,191.39,191.36,49.26505]
[1755206349556,0.1,191.39,191.36,40.932214]
[1755206349872,0.1,191.39,191.35,41.65101521]
[1755206349873,0.8,191.39,191.35,41.65101521]
[1755206350076,0.1,191.39,191.36,10.42505]
[1755206350956,0.1,191.39,191.38,10.42505]
[1755206351273,0.1,191.39,191.38,67.68633257]
[1755206351461,0.1,191.39,191.38,68.38633257]
[1755206352769,0.1,191.39,191.38,47.38027339]
[1755206352974,0.1,191.39,191.38,38.76]
[1755206353482,0.1,191.39,191.36,40.852215]
[1755206353789,0.1,191.39,191.36,38.76]
[1755206353993,0.8,191.39,191.36,38.76]
[1755206354280,0.1,191.39,191.36,54.41074085]
[1755206354485,0.1,191.39,191.36,38.76]
[1755206354690,0.1,191.39,191.35,41.65104996]
[1755206354691,0.8,191.39,191.35,31.22599996]
[1755206354869,0.1,191.39,191.36,10.42505]
[1755206355075,0.1,191.39,191.37,10.42505]
[1755206355576,0.1,191.39,191.35,42.35104996]
[1755206357980,0.1,191.39,191.35,31.22599996]
[1755206358481,0.1,191.39,191.35,41.65104996]
[1755206358976,0.1,191.39,191.35,31.22599996]
[1755206359182,0.1,191.39,191.35,41.65104996]
[1755206359366,0.1,191.39,191.35,31.22599996]
[1755206359567,0.7,191.38,191.34,52.590118]
[1755206359882,0.1,191.39,191.34,52.590118]
[1755206360087,4.09506777,191.38,191.34,0.03]
[1755206360259,4.09506777,191.37,191.34,0.03]
[1755206360464,0.7,191.36,191.34,0.03]
[1755206360983,4.09506777,191.36,191.34,0.03]
[1755206361189,0.7,191.36,191.34,0.03]
[1755206361394,0.7,191.35,191.34,0.03]
[1755206361593,13.56159098,191.35,191.34,0.03]
[1755206362090,9.32109337,191.35,191.23,38.7]
[1755206362389,4.27432456,191.33,191.25,5.22871892]
[1755206362588,3.39506777,191.32,191.25,5.22871892]
[1755206362791,3.39506777,191.31,191.25,5.22871892]
[1755206362980,4.09506777,191.31,191.25,5.22871892]
[1755206363984,9.32218605,191.31,191.22,5.92934095]
[1755206364161,28.53541583,191.31,191.2,0.03]
[1755206364360,13.60426983,191.31,191.21,0.7]
[1755206364575,9.32218605,191.31,191.23,0.7]
[1755206365082,4.09506777,191.31,191.23,5.2292314]
[1755206365284,4.09506777,191.31,191.25,0.7]
[1755206365686,3.39506777,191.31,191.25,0.7]
[1755206365862,3.39506777,191.31,191.25,5.9286745]
[1755206366070,9.32218605,191.31,191.24,5.22899719]
[1755206366267,4.09506777,191.31,191.25,5.2286102]
[1755206366472,4.09506777,191.31,191.25,5.9286102]
[1755206366695,3.39506777,191.32,191.26,0.7]
[1755206366871,3.39506777,191.33,191.26,0.7]
[1755206367073,3.39506777,191.32,191.26,0.7]
[1755206367367,4.09506777,191.33,191.26,0.7]
[1755206367583,3.39506777,191.33,191.27,0.7]
[1755206368094,3.39506777,191.33,191.28,5.2579381]
[1755206368577,3.39506777,191.33,191.31,0.7]
[1755206368767,42.08946387,191.38,191.32,0.7]
[1755206369093,3.42946387,191.37,191.32,0.7]
[1755206369310,3.42946387,191.37,191.33,0.7]
[1755206369967,3.42946387,191.37,191.34,0.7]
[1755206370170,3.42946387,191.37,191.31,15.10621557]
[1755206370371,3.42946387,191.37,191.35,0.7]
[1755206370673,0.1,191.39,191.36,0.67]
[1755206370880,0.1,191.39,191.37,0.67]
[1755206371291,0.1,191.39,191.38,0.67]
[1755206371969,0.1,191.39,191.38,5.89520639]
[1755206372372,0.1,191.39,191.38,21.00142196]
[1755206372994,0.06,191.43,191.39,15.10621557]
[1755206373502,0.06,191.43,191.41,15.10621557]
[1755206373868,0.06,191.43,191.39,15.10621557]
[1755206374076,0.06,191.43,191.42,21.00033008]
[1755206375602,0.77,191.43,191.34,0.67]
[1755206375781,0.77,191.43,191.35,46.94842182]
[1755206376093,4.20691312,191.43,191.35,46.94842182]
[1755206376274,0.77,191.43,191.35,46.94842182]
[1755206376767,5.99403965,191.43,191.35,46.94842182]
[1755206377198,5.28403965,191.43,191.35,46.94842182]
[1755206377396,30.71,191.42,191.35,26.03]
[1755206377570,3.43691312,191.41,191.35,26.03]
[1755206377772,30.0,191.42,191.36,15.77621557]
[1755206377977,0.06,191.43,191.36,15.77621557]
[1755206378302,0.06,191.43,191.37,0.67]
[1755206378677,0.06,191.43,191.38,5.22520639]
[1755206378904,0.06,191.43,191.39,0.67]
[1755206379085,0.06,191.43,191.4,0.67]
[1755206379672,0.06,191.43,191.39,15.10621557]
[1755206379874,0.06,191.43,191.38,5.89520639]
[1755206380710,0.06,191.43,191.39,0.67]
[1755206380883,0.06,191.43,191.4,5.89466039]
[1755206381069,0.06,191.43,191.4,5.22466039]
[1755206381417,0.06,191.43,191.41,0.67]
[1755206382292,0.06,191.43,191.41,5.89413495]
[1755206383201,0.06,191.43,191.41,5.22413495]
[1755206383712,0.06,191.43,191.41,5.89413495]
[1755206387104,0.06,191.43,191.42,0.67]
[1755206387309,0.06,191.43,191.42,15.77621557]
[1755206387609,0.06,191.43,191.42,21.00033008]
[1755206389799,0.06,191.45,191.44,26.0]
[1755206390002,0.06,191.45,191.44,41.10621557]
[1755206390303,0.06,191.45,191.44,43.86755457]
[1755206391112,0.06,191.46,191.45,15.10621557]
[1755206391312,0.06,191.46,191.45,53.50621557]
[1755206391497,0.06,191.46,191.45,54.17621557]
[1755206391687,0.06,191.46,191.42,18.28440079]
[1755206391883,0.06,191.46,191.43,53.48621557]
[1755206392093,0.06,191.46,191.44,7.31486107]
[1755206392297,0.06,191.46,191.44,5.22352207]
[1755206392683,0.06,191.46,191.44,5.89352207]
[1755206394308,0.06,191.46,191.4,15.10621557]
[1755206394488,0.06,191.46,191.4,17.86799257]
[1755206394884,0.06,191.46,191.4,2.091777]
[1755206395100,0.71,191.45,191.38,5.25515393]
[1755206396101,5.9334643,191.45,191.38,5.25515393]
[1755206396407,30.0,191.44,191.38,5.25515393]
[1755206397005,30.71,191.44,191.38,5.25515393]
[1755206397393,0.71,191.43,191.38,0.03]
[1755206397591,42.49711534,191.43,191.38,0.03]
[1755206397794,0.71,191.42,191.38,0.03]
[1755206398185,3.42675001,191.42,191.38,0.03]
[1755206398382,30.71,191.44,191.38,0.7]
[1755206398610,30.0,191.41,191.38,0.7]
[1755206399613,30.0,191.41,191.39,5.89493338]
[1755206399787,39.13,191.46,191.39,5.89493338]
[1755206400186,0.06,191.46,191.4,15.77621557]
[1755206400510,0.06,191.46,191.42,15.10621557]
[1755206400890,0.06,191.46,191.43,0.67]
[1755206401089,0.06,191.46,191.44,15.10621557]
[1755206401390,0.06,191.46,191.42,26.0]
[1755206401590,0.71,191.46,191.42,26.0]
[1755206401799,0.65,191.45,191.42,26.0]
[1755206401999,0.65,191.45,191.41,5.22424884]
[1755206402612,0.65,191.44,191.4,5.22458693]
[1755206402920,0.06,191.46,191.41,0.67]
[1755206403500,0.06,191.46,191.43,5.22384161]
[1755206404107,0.06,191.46,191.43,5.89384161]
[1755206404607,0.06,191.46,191.41,20.33060301]
[1755206405218,0.06,191.46,191.41,21.00060301]
[1755206405392,0.06,191.46,191.42,0.67]
[1755206406001,0.06,191.46,191.43,5.22384161]
[1755206406525,0.06,191.46,191.44,0.67]
[1755206406892,0.06,191.46,191.43,5.22384161]
[1755206407715,0.06,191.46,191.43,5.89384161]
[1755206409998,0.65,191.45,191.41,0.03]
[1755206410199,0.06,191.46,191.42,0.67]
[1755206410401,0.06,191.46,191.43,0.67]
[1755206411327,0.06,191.46,191.44,0.67]
[1755206411725,0.06,191.46,191.42,0.67]
[1755206412222,0.06,191.46,191.43,5.89384161]
[1755206412424,0.06,191.46,191.44,0.67]
[1755206412924,0.06,191.46,191.45,0.67]
[1755206414032,0.06,191.46,191.45,5.89329589]
[1755206415324,0.06,191.46,191.45,5.22329589]
[1755206415731,0.06,191.46,191.43,5.89361667]
[1755206415904,0.06,191.46,191.43,5.22361667]
[1755206416104,0.06,191.46,191.43,5.89361667]
[1755206419514,0.06,191.46,191.43,5.22361667]
[1755206419736,0.42,191.45,191.41,0.03]
[1755206420038,0.42,191.44,191.41,0.03]
[1755206420247,3.44735174,191.45,191.41,0.03]
[1755206420543,3.44735174,191.45,191.42,0.67]
[1755206421033,3.44735174,191.45,191.42,5.89410695]
[1755206421919,3.44735174,191.45,191.42,5.22410695]
[1755206422122,3.44735174,191.45,191.41,5.25431377]
[1755206422431,3.44735174,191.45,191.41,5.92431377]
[1755206423146,3.44735174,191.45,191.41,0.03]
[1755206423310,3.50735174,191.46,191.42,0.67]
[1755206424412,3.50735174,191.46,191.42,5.89391295]
[1755206424918,3.50735174,191.46,191.42,5.22391295]
[1755206425144,0.65,191.45,191.42,5.22391295]
[1755206425339,3.44735174,191.45,191.42,5.22391295]
[1755206425638,3.50735174,191.46,191.42,5.89391295]
[1755206425842,4.15735174,191.46,191.41,0.03]
[1755206426040,3.44735174,191.45,191.41,0.03]
[1755206426245,4.09735174,191.45,191.41,0.03]
[1755206427017,0.65,191.44,191.41,0.03]
[1755206427344,4.09735174,191.44,191.41,0.03]
[1755206427509,0.65,191.44,191.41,0.03]
[1755206427710,4.09735174,191.44,191.41,0.03]
[1755206427908,0.65,191.44,191.41,0.03]
[1755206428143,4.09735174,191.44,191.41,0.03]
[1755206428336,0.65,191.44,191.41,0.03]
[1755206428560,4.09735174,191.44,191.41,0.03]
[1755206428742,0.65,191.44,191.41,0.03]
[1755206429060,4.09735174,191.44,191.41,0.03]
[1755206429243,3.44735174,191.45,191.41,0.03]
[1755206429432,3.44735174,191.44,191.41,0.03]
[1755206430149,4.09735174,191.45,191.41,0.03]
[1755206430664,0.69,191.44,191.41,0.03]
[1755206432531,4.13735174,191.43,191.41,0.03]
[1755206432731,3.44735174,191.44,191.41,0.03]
[1755206432936,4.13735174,191.43,191.41,0.03]
[1755206433137,0.69,191.43,191.41,0.03]
[1755206433358,4.13735174,191.43,191.41,0.03]
[1755206433654,0.69,191.43,191.41,0.03]
[1755206433846,4.13735174,191.43,191.41,0.03]
[1755206434785,4.13735174,191.42,191.41,0.03]
[1755206436172,34.13735174,191.42,191.41,0.03]
[1755206436353,39.36146625,191.42,191.41,0.03]
[1755206437456,9.36146625,191.42,191.41,0.03]
[1755206440160,5.91411451,191.42,191.41,0.03]
[1755206440342,39.36146625,191.42,191.41,0.03]
[1755206440544,81.90829609,191.42,191.41,0.03]
[1755206444871,26.0,191.4,191.38,0.03]
[1755206445085,98.53821859,191.42,191.36,1e-08]
[1755206445086,41.10621557,191.38,191.36,1e-08]
[1755206445254,41.10621557,191.38,191.3,0.03]
[1755206445255,41.10621557,191.36,191.3,0.03]
[1755206445576,41.10621557,191.32,191.3,0.03]
[1755206445788,82.81356731,191.32,191.3,0.03]
[1755206446089,113.50356731,191.32,191.3,0.03]
[1755206446251,117.77476689,191.32,191.3,0.03]
[1755206446681,15.10621557,191.31,191.3,1e-08]
[1755206446858,19.24356731,191.31,191.3,1e-08]
[1755206447054,41.10621557,191.29,191.21,0.2]
[1755206447255,82.81356731,191.29,191.21,0.2]
[1755206447560,93.50356731,191.29,191.28,1e-08]
[1755206447771,83.50356731,191.29,191.28,1e-08]
[1755206448084,123.50356731,191.29,191.28,1e-08]
[1755206449378,118.73123211,191.29,191.28,1e-08]
[1755206449779,128.73123211,191.29,191.28,1e-08]
[1755206449981,118.73123211,191.29,191.28,1e-08]
[1755206450190,128.73123211,191.29,191.28,1e-08]
[1755206450365,133.00907548,191.29,191.28,1e-08]
[1755206450685,123.00907548,191.29,191.28,1e-08]
[1755206450883,133.00907548,191.29,191.28,1e-08]
[1755206452779,123.00907548,191.29,191.28,1e-08]
[1755206453086,133.00907548,191.29,191.28,1e-08]
[1755206453285,128.73123211,191.29,191.28,1e-08]
[1755206453979,90.47123211,191.29,191.28,1e-08]
[1755206454198,128.75123211,191.29,191.28,1e-08]
[1755206454802,90.47123211,191.29,191.28,1e-08]
[1755206454968,128.73123211,191.29,191.28,1e-08]
[1755206455290,90.47123211,191.29,191.28,1e-08]
[1755206455473,128.73123211,191.29,191.28,1e-08]
[1755206455795,133.00907548,191.29,191.28,1e-08]
[1755206456480,133.06907548,191.29,191.28,1e-08]
[1755206458989,94.80907548,191.29,191.28,1e-08]
[1755206459185,133.06907548,191.29,191.28,1e-08]
[1755206459964,133.06907548,191.29,191.24,0.03]
[1755206459965,41.10621557,191.25,191.24,0.03]
[1755206460188,59.44735174,191.25,191.24,0.03]
[1755206460377,30.0,191.25,191.24,0.03]
[1755206460573,72.72776823,191.25,191.24,0.03]
[1755206460878,72.72776823,191.25,191.24,0.72]
[1755206461687,77.95652639,191.25,191.24,0.72]
[1755206462204,37.88112115,191.25,191.24,0.03]
[1755206462487,77.95652639,191.25,191.24,0.72]
[1755206462690,39.69652639,191.25,191.24,0.72]
[1755206462873,81.36975928,191.25,191.24,0.03]
[1755206463270,81.36975928,191.25,191.24,0.72]
[1755206463474,81.36975928,191.25,191.24,0.03]
[1755206463886,97.15597485,191.25,191.22,0.03]
[1755206464086,26.0,191.23,191.22,0.03]
[1755206464392,97.67323289,191.23,191.22,0.03]
[1755206464689,113.45944846,191.23,191.22,0.03]
[1755206465793,118.68875348,191.23,191.22,0.03]
[1755206465970,102.90253791,191.23,191.22,0.03]
[1755206467184,64.64253791,191.23,191.22,0.03]
[1755206467390,102.90253791,191.23,191.22,0.72]
[1755206467893,97.67323289,191.23,191.22,0.72]
[1755206468390,97.67323289,191.23,191.22,0.03]
[1755206468391,102.90253791,191.23,191.22,0.03]
[1755206468580,102.90253791,191.23,191.22,0.72]
[1755206469175,97.67323289,191.23,191.22,0.72]
[1755206469374,67.67323289,191.23,191.22,0.72]
[1755206470394,5.18776823,191.25,191.22,0.72]
[1755206470592,3.48060682,191.29,191.22,0.72]
[1755206470800,26.0,191.25,191.22,0.72]
[1755206470974,26.0,191.25,191.23,0.69]
[1755206471170,38.26,191.24,191.23,0.69]
[1755206471596,41.68157291,191.24,191.22,0.03]
[1755206471801,3.42137551,191.23,191.22,0.72]
[1755206472785,5.30496482,191.25,191.22,0.72]
[1755206472999,38.26,191.24,191.22,0.72]
[1755206473180,38.26,191.24,191.23,0.69]
[1755206473496,71.68591913,191.24,191.22,0.03]
[1755206473679,3.42591913,191.23,191.22,0.03]
[1755206474394,8.65522415,191.23,191.22,0.03]
[1755206474599,38.65522415,191.23,191.22,0.03]
[1755206474808,39.33522415,191.23,191.22,0.03]
[1755206475184,9.33522415,191.23,191.22,0.03]
[1755206475686,39.33522415,191.23,191.22,0.03]
[1755206475996,43.60100234,191.23,191.22,0.03]
[1755206477300,26.0,191.2,191.18,0.03]
[1755206477499,3.42591913,191.19,191.18,0.03]
[1755206477698,26.0,191.2,191.19,0.69]
[1755206477903,67.66591913,191.2,191.19,0.69]
[1755206478204,97.66591913,191.2,191.19,0.69]
[1755206478375,71.66591913,191.2,191.19,0.69]
[1755206478581,68.24,191.2,191.19,0.69]
[1755206479403,30.0,191.2,191.19,0.69]
[1755206479613,68.24,191.2,191.19,0.69]